bitfinex-derivatives/quotes_ETHF0:USTF0_20250430
["timestamp","ask_amount","ask_price","bid_price","bid_amount"]
[1745996698223,3.2805,1806.0,1805.9,6.528]
[1745996699020,4.38764,1806.0,1805.9,6.528]
[1745996699317,4.38764,1806.0,1805.9,1.1072]
[1745996699620,1.1072,1805.9,1805.8,41.90722]
[1745996699823,2.7036,1805.9,1805.8,41.90722]
[1745996700021,1.5964,1805.9,1805.8,41.90722]
[1745996700214,1.5964,1805.9,1805.8,45.73522]
[1745996700413,2.7036,1805.9,1805.8,45.73522]
[1745996701725,1.5964,1805.9,1805.8,45.73522]
[1745996702022,2.7036,1805.9,1805.8,45.73522]
[1745996702223,1.5964,1805.9,1805.8,45.73522]
[1745996704322,1.5964,1805.9,1805.8,47.34662]
[1745996708624,2.7036,1805.9,1805.8,47.34662]
[1745996710727,2.7036,1805.9,1805.8,6.54662]
[1745996711222,2.7036,1805.9,1805.8,47.34662]
[1745996714029,2.7036,1805.9,1805.8,46.2394]
[1745996714224,2.7036,1805.9,1805.6,8.20970949]
[1745996714225,1.10732,1805.7,1805.6,8.20970949]
[1745996714525,1.10732,1805.7,1805.6,8.99220949]
[1745996714726,1.10732,1805.7,1805.6,42.416]
[1745996714926,2.79402,1805.7,1805.6,42.416]
[1745996716026,2.79402,1805.7,1805.6,43.52338]
[1745996717628,2.79402,1805.7,1805.6,2.72338]
[1745996719328,2.79402,1805.7,1805.6,1.616]
[1745996726623,1.10738,1805.6,1805.5,7.318]
[1745996726829,1.10738,1805.6,1805.5,5.4593]
[1745996727030,2.75988,1805.6,1805.5,5.4593]
[1745996727331,2.75988,1805.6,1805.5,1.6313]
[1745996728727,1.10757,1805.3,1805.2,11.69159949]
[1745996728919,1.10757,1805.3,1805.2,12.55249949]
[1745996729126,1.10757,1805.3,1805.2,16.38049949]
[1745996729327,1.89815,1805.4,1805.3,1.10755]
[1745996730233,1.89815,1805.4,1805.3,6.57205]
[1745996735831,1.10755,1805.4,1805.3,6.57205]
[1745996736027,1.10755,1805.4,1805.3,7.40805]
[1745996737143,1.10755,1805.4,1805.3,3.58005]
[1745996738140,1.10755,1805.4,1805.3,7.40805]
[1745996739338,6.10755,1805.4,1805.3,3.828]
[1745996739642,1.10755,1805.4,1805.3,3.828]
[1745996739834,2.71765,1805.4,1805.3,3.828]
[1745996740141,1.10757,1805.3,1805.2,1.5843]
[1745996740343,3.62697,1805.3,1805.2,1.5843]
[1745996742342,4.48717,1805.3,1805.2,1.5843]
[1745996745748,4.48717,1805.3,1805.2,3.53743]
[1745996745940,1.10755,1805.4,1805.3,1.10757]
[1745996746137,0.8121,1805.5,1805.4,1.10751]
[1745996746442,1.10754,1805.4,1805.3,1.10754]
[1745996746641,4.31524,1805.6,1805.2,11.3723]
[1745996746642,4.31523,1805.6,1805.5,1.10744]
[1745996746945,1.10746,1805.5,1805.4,1.10746]
[1745996747243,1.10746,1805.5,1805.4,4.93546]
[1745996758548,1.10746,1805.5,1805.4,6.59106]
[1745996758953,1.10746,1805.5,1805.4,3.828]
[1745996759150,1.6295,1805.5,1805.2,4.9015]
[1745996759346,1.10755,1805.4,1805.3,2.80124]
[1745996759545,1.10755,1805.4,1805.3,1.10754]
[1745996759951,1.90545,1805.4,1805.3,1.10754]
[1745996760253,1.90545,1805.4,1805.3,4.93554]
[1745996761354,1.1075,1805.5,1805.4,1.10748]
[1745996762156,1.1075,1805.5,1805.4,4.93548]
[1745996766658,1.1075,1805.5,1805.4,3.828]
[1745996767155,1.10751,1805.4,1805.3,5.78672]
[1745996767359,1.10751,1805.4,1805.3,4.6792]
[1745996767659,1.10751,1805.4,1805.3,3.828]
[1745996767960,2.71561,1805.4,1805.3,3.828]
[1745996768161,1.10757,1805.3,1805.2,11.69160949]
[1745996768362,4.35447,1805.3,1805.2,11.69160949]
[1745996768656,4.35447,1805.3,1805.2,4.3154]
[1745996769058,4.35447,1805.3,1805.2,1.1076]
[1745996772162,4.35447,1805.3,1805.2,4.9356]
[1745996774262,4.35447,1805.3,1805.2,1.1076]
[1745996778159,4.35447,1805.3,1805.2,4.9356]
[1745996778461,4.35447,1805.3,1805.2,6.5491]
[1745996781168,4.35447,1805.3,1805.2,2.7211]
[1745996782167,4.35447,1805.3,1805.2,6.5491]
[1745996784172,4.35447,1805.3,1805.2,2.7211]
[1745996787171,4.35447,1805.3,1805.2,1.6135]
[1745996788271,4.35447,1805.3,1805.2,2.72113]
[1745996788574,4.35447,1805.3,1805.2,1.6135]
[1745996789075,4.35447,1805.3,1805.2,2.72113]
[1745996789269,4.35447,1805.3,1805.2,1.6135]
[1745996789971,1.10763,1805.2,1805.1,0.8712]
[1745996790270,2.74903,1805.2,1805.1,2.4995]
[1745996790971,2.74903,1805.2,1805.1,3.60719]
[1745996791173,1.10763,1805.2,1805.1,3.60719]
[1745996796678,1.10763,1805.2,1805.1,1.10769]
[1745996797177,1.10763,1805.2,1805.1,2.71419]
[1745996797378,1.10763,1805.2,1805.1,1.6065]
[1745996797570,3.56783,1805.2,1805.1,1.6065]
[1745996798166,3.56783,1805.2,1805.1,4.8143]
[1745996801572,3.2078,1805.5,1805.1,7.58351]
[1745996801880,4.0532,1805.5,1805.4,1.10751]
[1745996802177,4.0532,1805.5,1805.4,4.93551]
[1745996802377,5.53678361,1805.6,1805.5,1.10744]
[1745996802579,6.64416361,1805.6,1805.5,3.69904]
[1745996803179,6.64416361,1805.6,1805.5,43.3916]
[1745996803578,6.64416361,1805.6,1805.5,44.49904]
[1745996804178,6.64416361,1805.6,1805.5,43.3916]
[1745996804481,1.10738,1805.6,1805.5,43.3916]
[1745996805579,2.71748,1805.6,1805.5,42.5438]
[1745996806480,2.71748,1805.6,1805.5,43.65124]
[1745996807475,2.71748,1805.6,1805.5,42.5438]
[1745996807970,2.71748,1805.6,1805.5,1.7438]
[1745996810286,1.10751,1805.4,1805.3,4.2831]
[1745996810487,1.10751,1805.4,1805.3,7.04437]
[1745996810980,2.80281,1805.4,1805.3,1.6537]
[1745996811184,1.10757,1805.3,1805.2,18.50145758]
[1745996811487,2.74527,1805.3,1805.2,18.50145758]
[1745996811886,2.74527,1805.3,1805.2,20.15515758]
[1745996812075,2.74527,1805.3,1805.2,23.98315758]
[1745996812886,2.74527,1805.3,1805.2,12.88228303]
[1745996817391,2.74527,1805.3,1805.2,5.4817]
[1745996818193,2.74527,1805.3,1805.2,1.6537]
[1745996819203,2.74527,1805.3,1805.2,5.4817]
[1745996819487,2.74527,1805.3,1805.2,3.828]
[1745996820085,2.74527,1805.3,1805.0,1.59]
[1745996820390,1.10769,1805.1,1805.0,2.69775]
[1745996820785,1.90199,1805.1,1805.0,2.69775]
[1745996821087,1.90199,1805.1,1805.0,6.52575]
[1745996821986,1.90199,1805.1,1805.0,5.418]
[1745996822984,3.55259,1805.1,1805.0,5.418]
[1745996823291,3.55259,1805.1,1805.0,1.59]
[1745996825288,1.10775,1805.0,1804.9,0.8343]
[1745996825482,3.57005,1805.0,1804.9,1.6013]
[1745996825686,1.10781,1804.9,1804.8,7.40058303]
[1745996825886,2.74181,1804.9,1804.8,7.40058303]
[1745996826288,2.74181,1804.9,1804.8,9.08358303]
[1745996826889,1.10781,1804.9,1804.8,9.08358303]
[1745996827291,1.10781,1804.9,1804.8,7.40058303]
[1745996827486,2.74181,1804.9,1804.8,7.40058303]
[1745996827795,7.74181,1804.9,1804.8,7.40058303]
[1745996828183,7.74181,1804.9,1804.6,16.48416607]
[1745996828184,1.10794,1804.7,1804.6,1.683]
[1745996828899,3.64894,1804.7,1804.6,1.683]
[1745996829691,1.10806,1804.5,1804.4,13.67690303]
[1745996829896,1.10806,1804.5,1804.4,11.99870303]
[1745996830296,1.10806,1804.5,1804.4,14.71858303]
[1745996831097,1.10806,1804.5,1804.4,15.82670303]
[1745996835807,1.10806,1804.5,1804.4,11.22858303]
[1745996836005,4.31586,1804.5,1804.4,11.22858303]
[1745996836305,8.14386,1804.5,1804.4,7.40058303]
[1745996836506,8.96766,1804.5,1804.4,7.40058303]
[1745996837104,5.13966,1804.5,1804.4,7.40058303]
[1745996837403,4.0316,1804.5,1804.2,1.91134]
[1745996837608,1.10818,1804.3,1804.2,1.91134]
[1745996839705,1.10818,1804.3,1804.2,0.8031]
[1745996847313,1.10818,1804.3,1804.2,1.91134]
[1745996848012,1.10818,1804.3,1804.2,0.8031]
[1745996848413,1.10818,1804.3,1804.2,2.4281]
[1745996849714,1.10818,1804.3,1804.2,3.53634]
[1745996851117,1.10818,1804.3,1804.2,2.4281]
[1745996851509,1.10818,1804.3,1804.2,3.53634]
[1745996852820,1.10818,1804.3,1804.2,2.4281]
[1745996854313,1.10818,1804.3,1804.2,3.53634]
[1745996855119,1.10818,1804.3,1804.2,7.36434]
[1745996856017,1.10818,1804.3,1804.2,6.2561]
[1745996856725,1.10818,1804.3,1804.2,7.36434]
[1745996861220,1.10818,1804.3,1804.2,6.2561]
[1745996862132,1.10818,1804.3,1804.2,2.4281]
[1745996864336,1.10818,1804.3,1804.2,1.625]
[1745996864633,2.71538,1804.3,1804.2,1.625]
[1745996867831,4.37774,1804.3,1803.9,3.2078]
[1745996868022,1.10843,1803.9,1803.8,1.5898]
[1745996868534,1.10849,1803.8,1803.7,0.7907]
[1745996868734,3.59729,1803.8,1803.7,2.448]
[1745996869738,1.10861,1803.6,1803.5,8.47569846]
[1745996869930,1.10861,1803.6,1803.5,49.82432846]
[1745996870130,1.1086,1803.7,1803.6,1.10861]
[1745996870335,1.1086,1803.7,1803.6,3.61961]
[1745996870736,1.1086,1803.7,1803.6,2.511]
[1745996871131,1.1086,1803.7,1803.5,53.10365846]
[1745996871634,1.1086,1803.7,1803.6,2.5973]
[1745996876134,1.1086,1803.7,1803.6,3.70591]
[1745996876941,1.1086,1803.7,1803.6,4.52841]
[1745996879237,1.1086,1803.7,1803.6,3.4198]
[1745996879747,1.1086,1803.7,1803.6,1.10861]
[1745996879942,1.10861,1803.6,1803.5,45.73662]
[1745996880141,1.10861,1803.6,1803.5,46.58742]
[1745996882748,1.10861,1803.7,1803.6,1.1086]
[1745996883554,1.10861,1803.6,1803.5,46.58742]
[1745996884246,1.10861,1803.6,1803.5,4.6788]
[1745996884444,1.10861,1803.6,1803.5,5.78747]
[1745996884952,1.10861,1803.6,1803.5,4.6788]
[1745996886046,2.85291,1803.6,1803.5,4.6788]
[1745996886248,2.85291,1803.6,1803.5,0.8508]
[1745996890352,1.10873,1803.4,1803.3,45.40075]
[1745996890550,1.10873,1803.4,1803.3,46.25875]
[1745996891159,1.10873,1803.4,1803.3,50.08675]
[1745996893462,1.10873,1803.4,1803.3,9.28675]
[1745996898765,1.91449,1803.5,1803.4,1.10873]
[1745996898965,1.91449,1803.5,1803.4,2.85073]
[1745996899158,1.91449,1803.5,1803.4,6.67873]
[1745996902466,1.10869,1803.5,1803.4,6.67873]
[1745996904365,1.10869,1803.5,1803.4,5.57]
[1745996904769,1.10869,1803.5,1803.4,6.67873]
[1745996905869,1.10869,1803.5,1803.4,5.57]
[1745996906662,1.10869,1803.5,1803.4,6.67873]
[1745996911270,1.10869,1803.5,1803.4,5.57]
[1745996912169,1.10869,1803.5,1803.4,6.67873]
[1745996912668,1.10869,1803.5,1803.4,5.57]
[1745996914172,2.80379,1803.5,1803.4,5.57]
[1745996917674,2.80379,1803.5,1803.4,6.67873]
[1745996917877,1.10869,1803.5,1803.4,5.57]
[1745996918174,1.10869,1803.5,1803.4,6.67873]
[1745996923481,1.10869,1803.5,1803.4,5.57]
[1745996924284,1.97369,1803.5,1803.4,1.742]
[1745996932591,1.10878,1803.4,1803.2,51.39740366]
[1745996932885,3.56408,1803.4,1803.3,1.6986]
[1745996933082,3.56408,1803.4,1803.3,5.5266]
[1745996934289,3.56408,1803.4,1803.3,3.828]
[1745996936085,1.1088,1803.3,1803.2,12.29600366]
[1745996936282,3.5279,1803.3,1803.2,1.6986]
[1745996942692,1.1088,1803.3,1803.2,1.6986]
[1745996946600,1.1088,1803.3,1803.2,2.80746]
[1745996946999,1.10876,1803.4,1803.3,1.1088]
[1745996947302,1.10873,1803.4,1803.3,7.32397]
[1745996947497,1.10873,1803.4,1803.3,6.2152]
[1745996949899,1.10873,1803.4,1803.3,7.324]
[1745996950901,1.10872,1803.5,1803.4,1.10872]
[1745996951096,1.10872,1803.5,1803.4,4.93672]
[1745996951402,5.45735,1803.6,1803.5,1.10867]
[1745996951702,5.45735,1803.6,1803.5,1.89947]
[1745996952101,4.60165,1803.6,1803.5,1.89947]
[1745996952405,4.60165,1803.6,1803.5,5.72747]
[1745996953103,4.60165,1803.6,1803.5,4.6188]
[1745996953296,4.60165,1803.6,1803.5,5.72747]
[1745996953608,4.60165,1803.6,1803.5,4.6188]
[1745996964408,4.60165,1803.6,1803.5,5.72747]
[1745996965910,1.93793,1803.8,1803.7,1.10855]
[1745996966109,1.10853,1803.8,1803.7,1.10855]
[1745996966311,1.10853,1803.8,1803.7,5.75645]
[1745996967312,1.10853,1803.8,1803.7,4.6479]
[1745996967512,1.10853,1803.8,1803.7,5.75645]
[1745996968513,1.10853,1803.8,1803.7,7.33235]
[1745996970415,1.10853,1803.8,1803.7,6.2238]
[1745996970913,3.60663,1803.8,1803.7,6.2238]
[1745996971516,1.97983,1803.8,1803.7,7.33235]
[1745996971709,1.10853,1803.8,1803.7,7.33235]
[1745996976420,1.10853,1803.8,1803.7,6.2238]
[1745996976727,1.10853,1803.8,1803.7,7.33235]
[1745996977021,1.10853,1803.8,1803.7,6.2238]
[1745996977424,1.10853,1803.8,1803.7,7.33235]
[1745996978118,5.2222,1804.0,1803.8,1.10846]
[1745996978317,1.10843,1803.9,1803.8,2.80066]
[1745996979124,1.10843,1803.9,1803.8,6.62866]
[1745996980832,5.17411,1804.0,1803.9,1.10843]
[1745996981129,5.17411,1804.0,1803.9,6.62863]
[1745996982121,5.17411,1804.0,1803.9,5.5202]
[1745996982320,5.17411,1804.0,1803.9,6.62863]
[1745996982829,5.17411,1804.0,1803.9,5.5202]
[1745996983322,5.17411,1804.0,1803.9,6.62863]
[1745996983628,1.96631,1804.0,1803.9,6.62863]
[1745996986232,1.10834,1804.1,1804.0,1.10837]
[1745996986433,1.94854,1804.1,1804.0,2.81777]
[1745996987131,1.94854,1804.1,1804.0,6.64577]
[1745996994541,1.94854,1804.1,1804.0,6.64577]
[1745996994737,1.94854,1804.1,1804.0,5.5374]
[1745996995035,3.62284,1804.1,1804.0,6.64577]
[1745996995240,3.62284,1804.1,1804.0,5.5374]
[1745996995542,3.62284,1804.1,1804.0,6.64577]
[1745996995736,3.62284,1804.1,1804.0,5.5374]
[1745996996838,3.62284,1804.1,1804.0,3.828]
[1745996997338,1.10843,1803.9,1803.8,2.85435]
[1745996997638,2.4969,1804.0,1803.8,1.7459]
[1745996997830,3.60531,1804.0,1803.9,1.10843]
[1745996998232,3.60531,1804.0,1803.9,4.93643]
[1745996998524,3.60531,1804.0,1803.9,3.828]
[1745996998733,3.60531,1804.0,1803.9,4.93643]
[1745996999250,3.60531,1804.0,1803.9,6.68233]
[1745997000438,6.81311,1804.0,1803.9,5.5739]
[1745997000839,6.81311,1804.0,1803.9,6.68233]
[1745997002241,6.81311,1804.0,1803.9,5.5739]
[1745997003142,6.81311,1804.0,1803.9,6.68233]
[1745997004542,3.60531,1804.0,1803.9,6.68233]
[1745997007443,1.10841,1804.0,1803.9,6.68233]
[1745997009245,5.15635,1804.1,1804.0,1.10837]
[1745997009441,4.048,1804.1,1804.0,3.54527]
[1745997009643,3.2078,1804.3,1804.0,2.4369]
[1745997009842,3.9994,1804.3,1804.2,1.10824]
[1745997011246,13.81446674,1804.4,1804.3,1.10818]
[1745997011449,13.81446674,1804.4,1804.3,3.54508]
[1745997012148,13.81446674,1804.4,1804.3,7.37308]
[1745997014050,12.70629674,1804.4,1804.3,7.37308]
[1745997014747,13.81441674,1804.4,1804.3,7.37308]
[1745997014946,12.70629674,1804.4,1804.3,7.37308]
[1745997015859,12.70629674,1804.4,1804.3,12.37308]
[1745997016153,12.70629674,1804.4,1804.3,11.70568]
[1745997016355,12.70629674,1804.4,1804.3,52.50568]
[1745997016555,7.1822,1804.4,1804.3,52.50568]
[1745997028064,7.1822,1804.4,1804.3,51.66408]
[1745997036467,7.1822,1804.4,1804.3,10.86408]
[1745997036667,8.0351,1804.4,1804.3,10.86408]
[1745997036867,8.8576,1804.4,1804.3,10.86408]
[1745997039267,10.4421,1804.4,1804.3,10.86408]
[1745997039770,10.4421,1804.4,1804.3,10.03178]
[1745997044074,8.8576,1804.4,1804.3,10.03178]
[1745997049184,8.0351,1804.4,1804.3,10.03178]
[1745997052596,8.0351,1804.4,1804.3,50.83178]
[1745997053997,7.1822,1804.4,1804.3,50.83178]
[1745997058498,7.1822,1804.4,1804.3,54.03958]
[1745997059499,7.1822,1804.4,1804.3,73.89194748]
[1745997061198,7.1822,1804.4,1804.3,54.03958]
[1745997062099,7.1822,1804.4,1804.3,50.83178]
[1745997062303,7.1822,1804.4,1804.3,54.03958]
[1745997065201,5.91444,1804.4,1804.3,62.82098723]
[1745997065506,4.464,1804.4,1804.3,68.72298723]
[1745997065802,1.9155,1804.4,1804.3,68.72298723]
[1745997066199,0.47623,1804.4,1804.3,68.72298723]
[1745997066405,1e-05,1804.4,1804.3,68.72298723]
[1745997066899,1e-05,1804.4,1804.3,73.72298723]
[1745997068706,0.843,1804.9,1804.8,1.10787]
[1745997068906,0.843,1804.9,1804.8,7.80367]
[1745997069403,0.843,1804.9,1804.8,52.43167]
[1745997069593,0.843,1804.9,1804.8,54.05877]
[1745997069999,2.5636,1804.9,1804.8,54.05877]
[1745997073111,2.5636,1804.9,1804.8,70.24030281]
[1745997073410,0.843,1804.9,1804.8,70.24030281]
[1745997076513,0.843,1804.9,1804.8,61.45889558]
[1745997081215,0.843,1804.9,1804.8,58.25109558]
[1745997081413,0.843,1804.9,1804.8,61.45889558]
[1745997083113,0.843,1804.9,1804.8,58.25109558]
[1745997083315,0.843,1804.9,1804.8,61.45889558]
[1745997083813,0.843,1804.9,1804.8,52.43167]
[1745997084115,1.6459,1804.9,1804.8,52.43167]
[1745997085510,1.6459,1804.9,1804.8,54.05837]
[1745997088916,1.6459,1804.9,1804.8,52.43167]
[1745997089613,3.3473,1804.9,1804.8,52.43167]
[1745997092416,4.45511,1804.9,1804.8,7.0358]
[1745997092615,9.45511,1804.9,1804.8,3.828]
[1745997093110,1.10794,1804.7,1804.6,41.908]
[1745997093607,6.10794,1804.7,1804.6,1.108]
[1745997093811,1.108,1804.6,1804.5,8.50817558]
[1745997094005,1.95068,1804.7,1804.6,1.108]
[1745997094315,0.8427,1804.7,1804.5,48.20012558]
[1745997094513,1.95069,1804.7,1804.6,1.108]
[1745997095016,6.95069,1804.7,1804.6,1.108]
[1745997095615,1.95069,1804.7,1804.6,1.108]
[1745997096913,1.95069,1804.7,1804.5,41.90803]
[1745997098114,1.108,1804.6,1804.5,45.73603]
[1745997101820,1.95068,1804.7,1804.6,1.108]
[1745997102418,1.108,1804.6,1804.5,43.52291]
[1745997102721,1.95068,1804.7,1804.6,1.108]
[1745997103321,1.95068,1804.7,1804.6,2.8553]
[1745997104824,4.31566,1804.9,1804.8,1.10787]
[1745997105125,4.31566,1804.9,1804.8,4.93587]
[1745997107524,5.15556,1804.9,1804.8,4.93587]
[1745997108031,5.15556,1804.9,1804.8,5.73147]
[1745997108627,5.15556,1804.9,1804.8,4.6236]
[1745997108928,6.80906,1804.9,1804.8,3.828]
[1745997109326,6.80906,1804.9,1804.8,5.5772]
[1745997109529,6.80906,1804.9,1804.8,46.3772]
[1745997109930,6.80906,1804.9,1804.8,47.48507]
[1745997112324,3.60126,1804.9,1804.8,47.48507]
[1745997114329,2.4934,1804.9,1804.8,47.48507]
[1745997114531,0.8399,1804.9,1804.8,47.48507]
[1745997115034,1.1078,1805.0,1804.9,1.10781]
[1745997115334,1.1078,1805.0,1804.9,3.65031]
[1745997116335,1.1078,1805.0,1804.9,7.47831]
[1745997119039,1.1078,1805.0,1804.9,6.3705]
[1745997119238,2.757,1805.0,1804.9,5.5459]
[1745997120139,2.757,1805.0,1804.9,1.7179]
[1745997121942,1.10787,1804.8,1804.7,0.8667]
[1745997122343,1.10787,1804.8,1804.7,2.4431]
[1745997122642,0.8631,1804.8,1804.7,3.55104]
[1745997122842,1.97097,1804.8,1804.7,3.55104]
[1745997123241,1.97097,1804.8,1804.7,7.37904]
[1745997124242,1.97097,1804.8,1804.7,3.55104]
[1745997125846,1.97097,1804.8,1804.7,2.4431]
[1745997126546,3.70477,1804.8,1804.7,3.55104]
[1745997126943,3.70477,1804.8,1804.7,2.4431]
[1745997127144,3.70477,1804.8,1804.7,3.55104]
[1745997128150,3.70477,1804.8,1804.7,7.37904]
[1745997130139,3.70477,1804.8,1804.7,3.55104]
[1745997131147,3.70477,1804.8,1804.7,7.37904]
[1745997132648,3.70477,1804.8,1804.7,6.2711]
[1745997132836,3.70477,1804.8,1804.7,5.4044]
[1745997133242,3.70477,1804.8,1804.7,1.5764]
[1745997134051,3.70477,1804.8,1804.7,2.68434]
[1745997134250,1.10794,1804.7,1804.6,4.31575]
[1745997134550,1.91744,1804.7,1804.6,6.00045]
[1745997135554,0.8095,1804.7,1804.6,6.00045]
[1745997141253,0.8095,1804.7,1804.6,2.79265]
[1745997141453,0.8095,1804.7,1804.6,6.00045]
[1745997141855,1.91744,1804.7,1804.6,4.8925]
[1745997142055,3.65414,1804.7,1804.6,4.8925]
[1745997143058,3.65414,1804.7,1804.6,6.0005]
[1745997147173,3.65414,1804.7,1804.6,2.7927]
[1745997147361,2.5462,1804.7,1804.6,6.0005]
[1745997148861,3.65414,1804.7,1804.6,6.0005]
[1745997149762,3.65414,1804.7,1804.6,1.6847]
[1745997150062,3.65414,1804.7,1804.6,2.7927]
[1745997150263,3.65414,1804.7,1804.6,1.6847]
[1745997150566,3.65414,1804.7,1804.6,2.7927]
[1745997153966,3.65414,1804.7,1804.6,1.6847]
[1745997157666,1.108,1804.6,1804.5,0.8304]
[1745997158167,2.5462,1804.7,1804.6,1.10795]
[1745997158168,1.10797,1804.7,1804.6,1.10795]
[1745997158764,1.10797,1804.7,1804.6,2.78545]
[1745997163169,1.10793,1804.8,1804.7,1.1079]
[1745997163369,1.10793,1804.8,1804.7,3.6916]
[1745997164172,1.10793,1804.8,1804.7,7.5196]
[1745997164668,1.10793,1804.8,1804.7,6.4117]
[1745997165268,1.10793,1804.8,1804.7,2.5837]
[1745997169771,1.10793,1804.8,1804.7,3.69164]
[1745997172671,1.10793,1804.8,1804.7,2.5837]
[1745997177475,1.10793,1804.8,1804.7,3.69164]
[1745997181372,1.10793,1804.8,1804.7,2.5837]
[1745997183482,1.10793,1804.8,1804.7,3.69164]
[1745997183679,1.10793,1804.8,1804.7,2.5837]
[1745997184986,1.10793,1804.8,1804.7,1.7265]
[1745997185280,1.10806,1804.5,1804.4,48.20492874]
[1745997185484,1.10806,1804.5,1804.4,51.77994874]
[1745997186078,1.10806,1804.5,1804.4,55.60794874]
[1745997187283,1.10806,1804.5,1804.4,14.80794874]
[1745997188178,2.83385,1804.6,1804.5,1.10806]
[1745997188376,2.83385,1804.6,1804.5,2.82226]
[1745997188785,1.95076,1804.7,1804.6,1.108]
[1745997188983,1.95076,1804.7,1804.6,3.6738]
[1745997189384,1.10792,1804.8,1804.7,1.10794]
[1745997191085,11.44144944,1804.9,1804.8,1.10787]
[1745997191287,5.11235,1804.9,1804.8,1.10787]
[1745997192487,1.10789,1804.8,1804.7,1.10789]
[1745997193181,1.10789,1804.8,1804.7,4.93589]
[1745997193488,5.11234,1804.9,1804.8,1.10787]
[1745997195187,5.11234,1804.9,1804.8,4.93587]
[1745997197191,8.74584211,1805.1,1804.8,3.828]
[1745997197484,5.53804211,1805.1,1805.0,1.10775]
[1745997197888,5.53804211,1805.1,1805.0,46.90775]
[1745997198185,5.53804211,1805.1,1805.0,50.73575]
[1745997199790,5.53804211,1805.3,1805.2,1.10763]
[1745997200289,5.53804211,1805.3,1805.2,4.93563]
[1745997203393,4.0363,1805.5,1805.4,1.10751]
[1745997204296,4.0363,1805.5,1805.4,4.93551]
[1745997207096,0.8285,1805.5,1805.4,4.93551]
[1745997209499,1.93594,1805.5,1805.4,4.93551]
[1745997210800,0.8285,1805.5,1805.4,4.93551]
[1745997212894,4.31512,1805.7,1805.6,1.10738]
[1745997213398,5.93692,1805.7,1805.6,1.10738]
[1745997213803,1.10738,1805.6,1805.5,2.8555]
[1745997214290,1.94718,1805.6,1805.5,6.6835]
[1745997215004,4.31515,1805.7,1805.6,1.10738]
[1745997215293,3.2078,1805.7,1805.6,2.85548]
[1745997215499,4.31512,1805.7,1805.6,2.85548]
[1745997216598,1.10732,1805.7,1805.6,2.85548]
[1745997216799,3.71772,1805.7,1805.6,2.85548]
[1745997240310,1.97942,1805.7,1805.6,2.85548]
[1745997240715,1.97942,1805.7,1805.6,3.71108]
[1745997241122,0.8721,1805.7,1805.6,3.71108]
[1745997241422,3.2078,1806.0,1805.9,1.1072]
[1745997242123,3.2078,1806.0,1805.9,4.9352]
[1745997242327,3.2078,1806.0,1805.9,5.7908]
[1745997242923,3.2078,1806.0,1805.9,7.4502]
[1745997243625,7.47755211,1806.1,1806.0,1.10714]
[1745997243825,7.47755211,1806.1,1806.0,2.76554]
[1745997244122,7.47755211,1806.1,1806.0,5.4864]
[1745997245030,7.47755211,1806.1,1806.0,6.59354]
[1745997245729,1.93951,1806.1,1806.0,6.59354]
[1745997246223,1.93951,1806.1,1806.0,5.4864]
[1745997247132,1.93951,1806.1,1806.0,6.59354]
[1745997247328,1.93951,1806.1,1806.0,5.4864]
[1745997247732,1.93951,1806.1,1806.0,6.59354]
[1745997248332,1.93951,1806.1,1806.0,1.6584]
[1745997248931,3.61071,1806.1,1806.0,2.76554]
[1745997250232,1.93951,1806.1,1806.0,6.59354]
[1745997250927,1.93951,1806.1,1806.0,5.4864]
[1745997251127,2.77271,1806.1,1806.0,5.4864]
[1745997251938,2.77271,1806.1,1806.0,6.59354]
[1745997252134,2.77271,1806.1,1806.0,5.4864]
[1745997252335,2.77271,1806.1,1806.0,6.59354]
[1745997253129,2.77271,1806.1,1806.0,2.76554]
[1745997256738,1.93951,1806.1,1806.0,2.76554]
[1745997257131,1.93951,1806.1,1806.0,6.59354]
[1745997259138,0.8324,1806.1,1806.0,6.59354]
[1745997259351,3.2078,1806.2,1806.1,1.10708]
[1745997259540,3.2078,1806.2,1806.1,3.59548]
[1745997260339,4.31486,1806.2,1806.1,3.59548]
[1745997262141,1.10706,1806.2,1806.1,3.59548]
[1745997263744,5.1827,1806.3,1806.2,1.10702]
[1745997263938,5.1827,1806.3,1806.2,2.74992]
[1745997264239,3.2078,1806.3,1806.2,6.57792]
[1745997264435,4.31475,1806.3,1806.2,6.57792]
[1745997264635,1.10694,1806.4,1806.3,1.10695]
[1745997264835,1.10694,1806.4,1806.3,44.45855]
[1745997269038,7.60187,1806.5,1806.4,1.10689]
[1745997269234,7.60187,1806.5,1806.4,2.79139]
[1745997269435,4.39407,1806.5,1806.4,2.79139]
[1745997269739,0.7886,1806.5,1806.4,2.79139]
[1745997271143,1.89543,1806.5,1806.4,2.79139]
[1745997276746,1.10681,1806.6,1806.5,1.10683]
[1745997276942,5.10506,1806.7,1806.6,1.10677]
[1745997277135,8.93306,1806.7,1806.6,1.10677]
[1745997277342,8.93306,1806.7,1806.6,2.83927]
[1745997277543,7.8263,1806.7,1806.6,2.83927]
[1745997277944,8.93301,1806.7,1806.6,2.83927]
[1745997278148,5.10501,1806.7,1806.6,2.83927]
[1745997279547,1.89721,1806.7,1806.6,2.83927]
[1745997282858,0.7905,1806.7,1806.6,2.83927]
[1745997283052,4.31449,1806.8,1806.7,1.10671]
[1745997283253,4.31449,1806.8,1806.7,3.63891]
[1745997283655,8.74584211,1807.0,1806.7,2.5322]